bitfinex/quotes_SOLUSD_20250717
["timestamp","ask_amount","ask_price","bid_price","bid_amount"]
[1752710402501,0.68,173.76,173.7,0.76]
[1752710403021,16.78468397,173.78,173.7,0.76]
[1752710403225,16.78468397,173.76,173.7,0.76]
[1752710403624,17.46468397,173.76,173.7,0.76]
[1752710405039,0.68,173.76,173.7,0.76]
[1752710405607,3.6797428,173.78,173.7,0.76]
[1752710405808,16.78468397,173.78,173.7,0.76]
[1752710406032,0.68,173.79,173.7,0.76]
[1752710406528,1.5729,173.81,173.71,16.78468397]
[1752710406718,0.03,173.81,173.73,16.78468397]
[1752710406913,0.03,173.81,173.74,0.7]
[1752710407642,0.03,173.81,173.76,8.0751]
[1752710407829,0.03,173.81,173.77,0.7]
[1752710408130,0.03,173.81,173.78,16.78468397]
[1752710408507,0.03,173.81,173.77,16.78468397]
[1752710408710,0.03,173.81,173.79,0.7]
[1752710410635,0.03,173.81,173.8,0.7]
[1752710415534,0.03,173.81,173.8,17.48468397]
[1752710416337,0.03,173.81,173.8,23.2384239]
[1752710417236,0.03,173.81,173.8,178.2007239]
[1752710417437,0.03,173.81,173.8,179.8534239]
[1752710417741,0.03,173.86,173.81,16.78468397]
[1752710417948,0.03,173.86,173.81,165.78468397]
[1752710418116,0.03,173.86,173.83,16.78468397]
[1752710418318,0.03,173.86,173.82,0.7]
[1752710418537,0.03,173.86,173.83,16.78468397]
[1752710419040,0.03,173.86,173.84,0.7]
[1752710421119,0.03,173.86,173.84,6.45238385]
[1752710421442,0.03,173.86,173.85,16.78468397]
[1752710421745,0.03,173.86,173.85,17.48468397]
[1752710422032,0.03,173.86,173.85,0.7]
[1752710425728,0.03,173.86,173.85,6.45208513]
[1752710425932,0.03,173.86,173.85,12.96088513]
[1752710426722,0.03,173.86,173.85,53.45348397]
[1752710429722,0.03,173.86,173.85,59.2055691]
[1752710431236,0.03,173.86,173.85,207.5055691]
[1752710432325,0.03,173.86,173.85,201.75348397]
[1752710432525,0.03,173.86,173.85,172.29348397]
[1752710432745,0.03,173.86,173.85,201.75348397]
[1752710433524,0.03,173.86,173.85,165.78468397]
[1752710433723,0.03,173.86,173.85,195.24468397]
[1752710435531,0.03,173.86,173.85,30.16]
[1752710436129,0.03,173.86,173.82,0.68]
[1752710436130,0.7,173.86,173.82,0.68]
[1752710436446,5.75208513,173.85,173.82,29.44]
[1752710436642,5.75208513,173.85,173.82,30.12]
[1752710437652,5.75208513,173.85,173.82,29.44]
[1752710438160,5.75208513,173.85,173.83,0.68]
[1752710438367,0.03,173.86,173.83,0.68]
[1752710438539,0.03,173.86,173.81,0.06]
[1752710438726,0.67,173.85,173.81,0.06]
[1752710440229,5.75274693,173.83,173.81,0.06]
[1752710440436,0.67,173.82,173.81,0.06]
[1752710441651,6.42307789,173.82,173.81,0.06]
[1752710442329,5.75307789,173.82,173.81,0.06]
[1752710443651,5.75274693,173.83,173.81,0.06]
[1752710443881,0.67,173.82,173.81,0.06]
[1752710445542,6.42307789,173.82,173.81,0.06]
[1752710446149,5.75307789,173.82,173.81,0.06]
[1752710447255,6.42307789,173.82,173.81,0.06]
[1752710450455,20.80577263,173.82,173.76,30.08]
[1752710450750,0.67,173.81,173.74,30.08]
[1752710451148,0.67,173.81,173.74,55.4]
[1752710451329,0.67,173.81,173.74,30.08]
[1752710451534,20.13808975,173.8,173.74,56.08]
[1752710451833,20.80808975,173.8,173.74,56.08]
[1752710453861,0.7,173.79,173.74,55.4]
[1752710454034,0.7,173.78,173.74,55.4]
[1752710454237,0.7,173.77,173.74,26.0]
[1752710454436,0.7,173.76,173.74,26.0]
[1752710454655,0.7,173.79,173.74,26.0]
[1752710454839,20.13808975,173.8,173.75,0.69]
[1752710455045,20.13808975,173.8,173.76,0.69]
[1752710455046,20.83808975,173.8,173.76,0.69]
[1752710455645,20.83808975,173.8,173.74,56.07]
[1752710456234,20.83808975,173.8,173.75,0.69]
[1752710456644,0.7,173.79,173.76,0.06]
[1752710456835,0.7,173.78,173.76,0.06]
[1752710457661,20.13808975,173.8,173.76,0.06]
[1752710457662,0.7,173.77,173.76,0.06]
[1752710458452,6.45473326,173.77,173.76,0.06]
[1752710458660,20.84156643,173.77,173.72,26.0]
[1752710458964,0.7,173.76,173.72,26.0]
[1752710459433,0.7,173.75,173.72,26.0]
[1752710460057,5.75572694,173.74,173.72,26.0]
[1752710460638,5.75572694,173.74,173.72,26.69]
[1752710461848,20.14272559,173.76,173.72,26.69]
[1752710462048,0.7,173.75,173.7,30.13]
[1752710462239,0.7,173.75,173.7,0.06]
[1752710464248,20.14504431,173.74,173.7,0.06]
[1752710464437,0.7,173.73,173.7,0.06]
[1752710465366,5.75572694,173.74,173.71,0.69]
[1752710465564,5.75572694,173.74,173.71,26.69]
[1752710466064,5.75572694,173.74,173.71,0.69]
[1752710466265,0.7,173.73,173.7,0.06]
[1752710466560,20.14419454,173.75,173.7,0.06]
[1752710466741,0.7,173.74,173.7,0.06]
[1752710466942,20.14419454,173.75,173.71,0.69]
[1752710467142,20.14419454,173.75,173.72,0.69]
[1752710467359,5.75539568,173.75,173.73,0.69]
[1752710467562,5.75539568,173.75,173.74,0.69]
[1752710468264,20.14092064,173.78,173.74,0.69]
[1752710468450,20.84092064,173.78,173.72,26.69]
[1752710468760,0.7,173.77,173.71,26.0]
[1752710469655,0.7,173.77,173.71,26.69]
[1752710470263,20.14272559,173.76,173.7,0.06]
[1752710470560,0.7,173.75,173.7,0.06]
[1752710470764,20.14272559,173.76,173.7,0.06]
[1752710470765,20.84272559,173.76,173.7,0.06]
[1752710470962,20.84272559,173.76,173.71,0.69]
[1752710471343,5.75506445,173.76,173.72,0.69]
[1752710471543,5.75506445,173.76,173.73,0.69]
[1752710473165,20.14180072,173.77,173.73,0.69]
[1752710473357,20.14180072,173.77,173.7,0.75]
[1752710473358,0.7,173.76,173.7,0.75]
[1752710473661,0.7,173.76,173.7,0.06]
[1752710474050,30.1,173.76,173.7,0.06]
[1752710474247,0.7,173.75,173.7,0.06]
[1752710475058,20.14504431,173.74,173.7,0.06]
[1752710475249,0.7,173.73,173.7,0.06]
[1752710475457,0.7,173.72,173.7,0.06]
[1752710475651,0.7,173.73,173.7,0.06]
[1752710475851,20.14504431,173.74,173.7,0.75]
[1752710476050,20.84504431,173.74,173.7,0.75]
[1752710476367,20.14504431,173.74,173.7,0.75]
[1752710476741,20.84504431,173.74,173.7,0.75]
[1752710476942,20.14504431,173.74,173.7,0.75]
[1752710477145,14.38931737,173.74,173.7,0.75]
[1752710478066,15.08931737,173.74,173.7,0.75]
[1752710478247,15.08931737,173.74,173.7,0.06]
[1752710479071,20.84504431,173.74,173.7,0.06]
[1752710479263,20.14504431,173.74,173.7,26.75]
[1752710480867,20.84504431,173.74,173.7,0.75]
[1752710481744,20.84504431,173.74,173.7,0.06]
[1752710483272,0.7,173.73,173.7,0.06]
[1752710484356,20.14504431,173.74,173.7,0.06]
[1752710484562,20.14504431,173.74,173.71,0.7]
[1752710484763,14.38931737,173.74,173.72,0.7]
[1752710485252,20.14272559,173.76,173.72,0.7]
[1752710485461,20.14272559,173.76,173.74,26.0]
[1752710485462,5.75506445,173.76,173.74,26.0]
[1752710485655,5.75506445,173.76,173.75,0.7]
[1752710485871,5.75373993,173.8,173.76,26.0]
[1752710486054,5.75373993,173.8,173.77,0.7]
[1752710486255,5.75373993,173.8,173.78,0.7]
[1752710486775,20.16648336,173.82,173.78,0.7]
[1752710486949,20.16648336,173.82,173.79,0.7]
[1752710487150,5.78307789,173.82,173.8,0.7]
[1752710487563,5.78307789,173.82,173.78,0.7]
[1752710487766,5.78307789,173.82,173.77,16.78468397]
[1752710488077,5.78307789,173.82,173.79,0.7]
[1752710488257,5.78307789,173.82,173.77,16.78468397]
[1752710488460,5.78307789,173.82,173.8,0.7]
[1752710488983,0.03,173.82,173.8,0.7]
[1752710489976,0.67,173.81,173.75,0.7]
[1752710490150,0.67,173.81,173.73,6.879]
[1752710490351,0.67,173.81,173.74,0.7]
[1752710491254,20.13808975,173.8,173.74,0.7]
[1752710491455,20.80808975,173.8,173.74,0.7]
[1752710492061,0.67,173.79,173.73,26.0]
[1752710493481,20.1404074,173.78,173.73,26.0]
[1752710493675,0.67,173.77,173.73,26.0]
[1752710494273,0.67,173.76,173.71,29.38]
[1752710494477,0.67,173.76,173.71,30.08]
[1752710494862,0.67,173.76,173.72,26.0]
[1752710495458,5.75539568,173.75,173.72,26.0]
[1752710496169,5.75539568,173.75,173.72,26.7]
[1752710497572,20.14306979,173.76,173.72,26.7]
[1752710497773,20.14306979,173.76,173.73,0.7]
[1752710498179,20.14306979,173.76,173.72,26.0]
[1752710498381,20.14306979,173.76,173.72,26.7]
[1752710499264,20.14306979,173.76,173.73,0.7]
[1752710499798,20.14306979,173.76,173.74,0.7]
[1752710499970,5.75506445,173.76,173.75,0.7]
[1752710501304,14.38580665,173.79,173.75,0.7]
[1752710502097,14.41580665,173.79,173.75,0.7]
[1752710502575,15.08580665,173.79,173.75,0.7]
[1752710503085,20.83987765,173.79,173.75,0.7]
[1752710503286,20.83987765,173.79,173.72,26.06]
[1752710503485,0.67,173.78,173.73,0.7]
[1752710504075,0.67,173.77,173.74,26.0]
[1752710504494,20.83987765,173.79,173.74,26.0]
[1752710504665,0.67,173.77,173.74,26.0]
[1752710505181,6.42506445,173.76,173.74,26.0]
[1752710505368,5.75506445,173.76,173.74,26.0]
[1752710506186,5.75506445,173.76,173.74,26.7]
[1752710506388,5.75506445,173.76,173.75,0.7]
[1752710507396,20.16987765,173.79,173.75,0.7]
[1752710507773,20.16987765,173.79,173.76,0.7]
[1752710509101,14.41580665,173.79,173.76,0.7]
[1752710509903,14.41580665,173.79,173.77,0.7]
[1752710511999,14.41580665,173.79,173.75,0.7]
[1752710512173,0.67,173.78,173.74,26.0]
[1752710512372,14.41580665,173.79,173.75,0.7]
[1752710512570,14.41580665,173.79,173.76,0.7]
[1752710512794,0.03,173.79,173.76,0.7]
[1752710513196,0.03,173.79,173.74,26.0]
[1752710513376,0.03,173.79,173.75,0.7]
[1752710513992,20.16924851,173.79,173.75,0.7]
[1752710514496,20.16924851,173.79,173.74,26.0]
[1752710514680,20.16924851,173.79,173.76,0.67]
[1752710516005,14.41517751,173.79,173.76,0.67]
[1752710516498,0.67,173.78,173.74,26.67]
[1752710516812,14.41517751,173.79,173.72,1e-08]
[1752710516813,42.78468397,173.76,173.72,1e-08]
[1752710516977,42.78468397,173.76,173.7,1e-08]
[1752710517177,16.78468397,173.74,173.7,1e-08]
[1752710517407,29.5,173.73,173.7,1e-08]
[1752710517779,0.67,173.72,173.7,1e-08]
[1752710518493,5.75672097,173.71,173.7,1e-08]
[1752710518988,6.42672097,173.71,173.7,1e-08]
[1752710520383,35.92672097,173.71,173.7,1e-08]
[1752710524399,5.75672097,173.71,173.7,1e-08]
[1752710524605,35.92672097,173.71,173.7,1e-08]
[1752710525906,35.92672097,173.71,173.69,1e-08]
[1752710526081,0.67,173.7,173.69,1e-08]
[1752710526286,0.67,173.7,173.68,1e-08]
[1752710527298,0.67,173.69,173.68,1e-08]
[1752710527502,6.42738384,173.69,173.68,1e-08]
[1752710529306,6.42738384,173.69,173.63,0.06]
[1752710529307,20.82084345,173.69,173.63,0.06]
[1752710529488,30.15,173.68,173.63,0.06]
[1752710530005,30.15,173.68,173.64,0.67]
[1752710530519,0.67,173.67,173.63,0.06]
[1752710530900,0.67,173.67,173.63,0.73]
[1752710531101,5.75837844,173.66,173.63,0.73]
[1752710531300,6.42837844,173.66,173.63,0.06]
[1752710531499,5.75837844,173.66,173.63,0.06]
[1752710531721,5.75837844,173.66,173.63,0.73]
[1752710532909,30.25,173.65,173.62,0.06]
[1752710533299,5.75904169,173.64,173.62,0.06]
[1752710536298,5.75904169,173.64,173.63,0.67]
[1752710537504,8.75899796,173.68,173.66,26.0]
[1752710537728,5.75774795,173.68,173.67,0.67]
[1752710538399,5.75774795,173.68,173.63,6.6375]
[1752710538400,5.75774795,173.68,173.65,0.67]
[1752710539404,14.39411154,173.69,173.65,0.67]
[1752710539713,14.39411154,173.69,173.66,0.67]
[1752710542995,14.39411154,173.69,173.64,0.67]
[1752710543200,0.67,173.68,173.62,0.73]
[1752710544121,49.71149538,173.69,173.62,0.73]
[1752710544916,50.42149538,173.69,173.62,0.73]
[1752710545314,0.71,173.68,173.62,0.73]
[1752710546512,49.71149538,173.69,173.63,0.06]
[1752710546721,49.71149538,173.69,173.64,0.72]
[1752710546921,49.74149538,173.69,173.65,0.72]
[1752710547107,50.45149538,173.69,173.65,0.72]
[1752710547302,0.71,173.68,173.63,0.06]
[1752710548421,2.22,173.68,173.62,0.06]
[1752710548603,0.71,173.67,173.62,0.06]
[1752710548804,29.56,173.66,173.62,0.06]
[1752710549009,0.71,173.65,173.61,0.06]
[1752710549511,6.46904169,173.64,173.61,0.06]
[1752710549717,29.56,173.63,173.61,0.06]
[1752710549923,30.27,173.63,173.61,1e-08]
[1752710550118,0.71,173.62,173.61,1e-08]
[1752710551309,6.4697051,173.62,173.61,1e-08]
[1752710552121,23.25438907,173.62,173.61,1e-08]
[1752710552318,24.80838907,173.62,173.61,1e-08]
[1752710552705,8.0237051,173.62,173.61,1e-08]
[1752710552912,37.5837051,173.62,173.61,1e-08]
[1752710553314,8.0237051,173.62,173.61,1e-08]
[1752710553515,35.3197051,173.62,173.61,1e-08]
[1752710553716,5.7597051,173.62,173.61,1e-08]
[1752710553919,35.3397051,173.62,173.61,1e-08]
[1752710554620,5.7597051,173.62,173.61,1e-08]
[1752710554820,35.3397051,173.62,173.61,0.72000001]
[1752710555319,5.75904169,173.64,173.61,0.72000001]
[1752710556538,5.75904169,173.64,173.62,0.72]
[1752710556736,5.75904169,173.64,173.61,1e-08]
[1752710557039,5.75904169,173.64,173.62,0.72]
[1752710557234,5.75904169,173.64,173.61,1e-08]
[1752710557439,5.75904169,173.64,173.61,0.72000001]
[1752710559327,5.75904169,173.64,173.62,0.72]
[1752710559522,43.95485885,173.68,173.62,0.72]
[1752710559930,20.15316404,173.67,173.62,0.72]
[1752710560427,20.15316404,173.67,173.63,0.72]
[1752710560829,20.15316404,173.67,173.64,0.72]
[1752710561543,20.15316404,173.67,173.61,16.78468398]
[1752710561744,20.15316404,173.67,173.65,0.72]
[1752710562133,20.15316404,173.67,173.66,0.72]
[1752710562443,20.15316404,173.67,173.64,0.72]
[1752710562648,20.15316404,173.67,173.65,0.72]
[1752710563727,5.75804687,173.67,173.66,0.72]
[1752710563928,5.75781521,173.68,173.66,0.72]
[1752710564118,0.03,173.69,173.66,0.72]
[1752710564319,0.03,173.69,173.67,0.72]
[1752710565360,0.03,173.69,173.64,26.0]
[1752710565537,0.03,173.69,173.68,0.72]
[1752710565740,0.71,173.68,173.61,1e-08]
[1752710565928,26.0,173.66,173.61,1e-08]
[1752710566127,5.75904169,173.64,173.61,1e-08]
[1752710566322,5.75904169,173.64,173.55,1e-08]
[1752710566529,17.49468397,173.63,173.55,1e-08]
[1752710566758,29.56,173.62,173.55,1e-08]
[1752710567048,30.27,173.62,173.55,1e-08]
[1752710567255,0.71,173.61,173.55,1e-08]
[1752710567429,0.71,173.61,173.55,0.72000001]
[1752710567930,29.58,173.6,173.55,0.72000001]
[1752710568130,49.66185439,173.64,173.55,0.72000001]
[1752710568433,30.29,173.63,173.56,0.72]
[1752710569035,29.58,173.62,173.56,0.72]
[1752710569857,30.29,173.62,173.56,0.72]
[1752710570155,0.71,173.61,173.55,1e-08]
[1752710570540,20.16129031,173.6,173.55,1e-08]
[1752710570743,29.58,173.59,173.55,1e-08]
[1752710571049,30.29,173.59,173.55,1e-08]
[1752710571755,30.29,173.59,173.55,0.72000001]
[1752710571756,29.58,173.59,173.55,0.72000001]
[1752710572657,5.76103237,173.58,173.55,0.72000001]
[1752710572859,5.76103237,173.58,173.55,1e-08]
[1752710573029,35.32103237,173.58,173.55,1e-08]
[1752710573531,36.03103237,173.58,173.55,1e-08]
[1752710573746,35.32103237,173.58,173.55,1e-08]
[1752710573936,29.56,173.57,173.55,1e-08]
[1752710574665,5.76169624,173.56,173.55,1e-08]
[1752710577730,20.82593684,173.56,173.52,0.2]
[1752710577932,0.66,173.55,173.52,0.2]
[1752710578151,29.58,173.54,173.52,0.2]
[1752710579257,5.76269232,173.53,173.52,0.2]
[1752710579644,5.76136429,173.57,173.52,0.87]
[1752710579953,29.56,173.56,173.53,0.67]
[1752710580146,29.56,173.56,173.54,0.67]
[1752710580545,29.56,173.56,173.55,0.67]
[1752710580954,5.76136429,173.57,173.55,0.67]
[1752710581181,35.32136429,173.57,173.55,0.67]
[1752710581534,5.76136429,173.57,173.56,0.67]
[1752710581762,24.09201603,173.62,173.56,0.67]
[1752710581940,49.74012902,173.61,173.56,0.67]
[1752710582340,49.74012902,173.61,173.57,0.67]
[1752710583676,49.74012902,173.61,173.58,0.67]
[1752710583875,50.40012902,173.61,173.56,0.67]
[1752710584575,49.74012902,173.61,173.57,0.67]
[1752710584757,49.74012902,173.61,173.58,0.67]
[1752710584957,49.74012902,173.61,173.55,6.4857]
[1752710585158,49.74012902,173.61,173.56,0.67]
[1752710585367,49.74012902,173.61,173.57,0.67]
[1752710586857,49.74012902,173.61,173.58,0.67]
[1752710587057,49.74012902,173.61,173.55,6.4857]
[1752710587058,49.74012902,173.61,173.56,0.67]
[1752710587285,49.74012902,173.61,173.57,0.67]
[1752710588079,49.74012902,173.61,173.58,0.67]
[1752710588259,20.16012902,173.61,173.58,0.67]
[1752710588577,49.80012902,173.61,173.58,0.67]
[1752710589075,50.46012902,173.61,173.55,7.1557]
[1752710589279,49.80012902,173.61,173.56,0.67]
[1752710589478,49.80012902,173.61,173.55,6.4857]
[1752710589668,49.80012902,173.61,173.57,0.67]
[1752710590672,49.80012902,173.61,173.58,0.67]
[1752710591575,49.83012902,173.61,173.58,0.67]
[1752710591764,50.49012902,173.61,173.56,0.67]
[1752710592483,0.66,173.6,173.55,6.4857]
[1752710592688,30.32,173.59,173.55,6.4857]
[1752710593062,30.32,173.59,173.55,26.0]
[1752710593362,30.32,173.59,173.55,26.67]
[1752710593576,20.85012902,173.61,173.55,26.0]
[1752710593770,29.66,173.6,173.56,0.67]
[1752710594092,29.66,173.6,173.57,0.67]
[1752710594293,29.66,173.6,173.55,26.0]
[1752710594294,29.66,173.6,173.58,0.67]
[1752710594779,29.66,173.6,173.55,26.0]
[1752710594780,5.7607005,173.59,173.56,16.78468397]
[1752710594976,5.76047263,173.6,173.56,16.78468397]
[1752710595288,5.76047263,173.6,173.56,42.78468397]
[1752710595485,5.76047263,173.6,173.57,0.67]
[1752710595868,5.79012309,173.61,173.57,0.67]
[1752710597090,5.79012309,173.61,173.58,0.67]
[1752710597389,5.79012309,173.61,173.59,0.67]
[1752710597883,5.79012309,173.61,173.6,0.67]
[1752710598081,5.79012309,173.61,173.56,42.78468397]
[1752710598082,5.79012309,173.61,173.59,0.67]
[1752710598385,5.79012309,173.61,173.6,0.67]
[1752710598570,0.03,173.61,173.6,0.67]
[1752710599089,0.03,173.61,173.6,26.67]
[1752710600387,0.03,173.61,173.6,43.45468397]
[1752710601191,0.03,173.61,173.6,49.64133963]
[1752710601384,0.03,173.61,173.6,85.06170829]
[1752710601773,0.03,173.61,173.6,74.65828397]
[1752710602873,0.03,173.61,173.6,73.11468397]
[1752710603078,0.03,173.61,173.6,43.45468397]
[1752710604209,0.03,173.61,173.6,26.0]
[1752710604571,0.03,173.61,173.57,47.18468397]
[1752710604890,0.03,173.61,173.57,26.72]
[1752710604891,0.75,173.61,173.57,26.72]
[1752710605576,0.03,173.61,173.57,26.0]
[1752710605782,0.75,173.61,173.57,26.72]
[1752710606399,5.76036866,173.6,173.57,26.72]
[1752710606986,5.76036866,173.6,173.58,0.72]
[1752710607198,5.76036866,173.6,173.57,26.0]
[1752710607581,5.76036866,173.6,173.57,26.72]
[1752710607892,5.76036866,173.6,173.57,26.0]
[1752710608079,20.88129031,173.6,173.55,26.72]
[1752710608280,20.88129031,173.6,173.55,0.72]
[1752710608791,20.88129031,173.6,173.55,26.72]
[1752710609192,20.16129031,173.6,173.56,0.72]
[1752710609395,20.16129031,173.6,173.57,0.72]
[1752710609899,20.16129031,173.6,173.55,26.72]
[1752710610196,20.16129031,173.6,173.56,0.72]
[1752710610496,14.40092165,173.6,173.56,0.72]
[1752710611006,0.72,173.59,173.55,26.0]
[1752710611208,0.72,173.59,173.55,26.72]
[1752710611495,0.72,173.58,173.55,26.0]
[1752710612696,5.76136429,173.57,173.54,0.06]
[1752710612899,6.48136429,173.57,173.54,0.06]
[1752710613599,6.48136429,173.57,173.54,26.06]
[1752710613785,5.76136429,173.57,173.54,26.06]
[1752710614295,5.76136429,173.57,173.54,26.78]
[1752710615010,20.16419988,173.58,173.55,0.72]
[1752710616994,14.40316751,173.58,173.55,0.72]
[1752710618604,14.40316751,173.58,173.54,26.06]
[1752710618793,0.72,173.57,173.54,0.06]
[1752710618997,5.76169624,173.56,173.54,0.06]
[1752710619306,0.72,173.55,173.54,0.06]
[1752710619488,5.76169624,173.56,173.54,0.06]
[1752710619489,6.48169624,173.56,173.54,0.06]
[1752710619900,5.76169624,173.56,173.54,0.06]
[1752710620797,5.76169624,173.56,173.54,0.78]
[1752710620997,5.76136429,173.57,173.54,0.78]
[1752710621522,5.76136429,173.57,173.55,0.72]
[1752710621816,5.76136429,173.57,173.54,0.06]
[1752710622192,5.76136429,173.57,173.54,0.78]
[1752710623301,5.76136429,173.57,173.55,0.72]
[1752710623611,5.76136429,173.57,173.56,0.72]
[1752710625293,20.16129031,173.6,173.54,17.56468397]
[1752710625689,20.88129031,173.6,173.54,17.56468397]
[1752710625887,20.88129031,173.6,173.54,0.78]
[1752710626091,20.88129031,173.6,173.54,26.78]
[1752710627191,20.88129031,173.6,173.55,0.72]
[1752710627411,20.88129031,173.6,173.56,0.72]
[1752710628308,20.16129031,173.6,173.57,0.72]
[1752710629513,14.40092165,173.6,173.57,0.72]
[1752710630606,5.79003686,173.61,173.58,0.72]
[1752710630997,5.79003686,173.61,173.59,26.0]
[1752710631219,0.03,173.61,173.6,0.72]
[1752710634005,0.03,173.61,173.6,17.50468397]
[1752710636695,0.03,173.61,173.6,171.56505263]
[1752710637301,0.03,173.68,173.64,42.78468397]
[1752710637501,5.78779345,173.68,173.65,29.78]
[1752710637805,5.78779345,173.68,173.65,26.0]
[1752710638411,0.72,173.68,173.62,30.46]
[1752710638616,0.69,173.67,173.63,26.0]
[1752710638793,0.03,173.68,173.63,26.0]
[1752710638996,0.69,173.66,173.63,26.0]
[1752710639910,0.72,173.68,173.63,26.0]
[1752710640116,0.69,173.67,173.63,26.0]
[1752710640319,0.03,173.68,173.63,26.68]
[1752710640509,0.72,173.68,173.63,26.68]
[1752710641208,0.69,173.67,173.63,26.0]
[1752710641415,0.69,173.66,173.63,26.0]
[1752710641728,0.69,173.65,173.63,26.0]
[1752710642031,0.69,173.65,173.62,26.0]
[1752710642634,5.75904169,173.64,173.62,26.0]
[1752710642921,5.75904169,173.64,173.59,26.0]
[1752710643123,0.69,173.63,173.59,26.0]
[1752710643328,5.75904169,173.64,173.59,26.68]
[1752710643515,20.15664592,173.64,173.6,0.68]
[1752710643824,5.75904169,173.64,173.61,26.0]
[1752710643996,5.75904169,173.64,173.62,0.68]
[1752710644196,5.75904169,173.64,173.63,0.68]
[1752710645138,5.75837844,173.66,173.63,0.68]
[1752710645498,20.15432454,173.66,173.61,26.68]
[1752710645702,20.15432454,173.66,173.61,26.0]
[1752710645703,0.69,173.65,173.61,26.0]
[1752710646302,20.15432454,173.66,173.61,26.68]
[1752710646502,20.84432454,173.66,173.61,26.68]
[1752710646719,20.84432454,173.66,173.62,0.68]
[1752710647211,20.15432454,173.66,173.62,0.68]
[1752710648324,20.84432454,173.66,173.62,0.68]
[1752710649316,14.3959461,173.66,173.62,0.68]
[1752710649827,15.0859461,173.66,173.62,0.68]
[1752710651598,20.84432454,173.66,173.62,0.68]
[1752710652018,0.69,173.65,173.61,26.0]
[1752710652215,0.69,173.65,173.61,26.68]
[1752710652532,20.15432454,173.66,173.61,26.68]
[1752710652533,20.15432454,173.66,173.62,0.68]
[1752710653625,20.84432454,173.66,173.62,0.68]
[1752710653928,20.84432454,173.66,173.61,26.0]
[1752710654132,0.69,173.65,173.61,26.68]
[1752710654927,20.15432454,173.66,173.62,0.68]
[1752710655129,20.84432454,173.66,173.62,0.68]
[1752710655626,20.15432454,173.66,173.62,0.68]
[1752710655827,5.75812315,173.67,173.64,16.78468397]
[1752710656028,0.03,173.68,173.67,16.78468397]
[1752710656633,0.03,173.68,173.67,17.46468397]
[1752710657426,0.03,173.68,173.67,165.76468397]
[1752710657730,0.03,173.68,173.67,172.31858397]
[1752710657931,0.03,173.69,173.68,24.2006993]
[1752710658109,0.03,173.75,173.72,42.78468397]
[1752710658311,0.03,173.79,173.75,6.5539]
[1752710658618,0.03,173.79,173.77,16.78468397]
[1752710658822,0.03,173.79,173.76,30.6]
[1752710659921,0.03,173.79,173.76,29.92]
[1752710660123,0.03,173.79,173.75,16.78468397]
[1752710660418,0.03,173.79,173.76,0.68]
[1752710660607,0.03,173.79,173.77,16.78468397]
[1752710660807,0.03,173.79,173.77,46.74468397]
[1752710661008,0.03,173.79,173.78,0.68]
[1752710661507,0.03,173.79,173.77,26.0]
[1752710661724,0.03,173.79,173.77,26.68]
[1752710662038,0.03,173.79,173.78,0.68]